Department Family,Entity,Date,Expenses Type,Expense Area,Supplier,Transaction Number, Total 
Department of Health,The Christie NHS Foundation Trust,01/02/2018,Medical Equipment Maintenance Contract,01 Cancer Centre Services,CPP FACILITIES LLP,571723,"-172,856.77"
Department of Health,The Christie NHS Foundation Trust,08/02/2018,Medical Equipment Maintenance Contract,01 Cancer Centre Services,CPP FACILITIES LLP,575010,"-172,856.77"
Department of Health,The Christie NHS Foundation Trust,01/02/2018,Medical Equipment Maintenance Contract,01 Cancer Centre Services,CPP FACILITIES LLP,572006,"201,845.44"
Department of Health,The Christie NHS Foundation Trust,08/02/2018,Medical Equipment Maintenance Contract,01 Cancer Centre Services,CPP FACILITIES LLP,576168,"172,856.77"
Department of Health,The Christie NHS Foundation Trust,22/02/2018,Medical Equipment Support Jan-18 to Dec-18,01 Cancer Centre Services,SIEMENS HEALTHCARE LIMITED,570588,"40,316.57"
Department of Health,The Christie NHS Foundation Trust,01/02/2018,Patient Testing Service ,01 Cancer Centre Services,THE CHRISTIE PATHOLOGY PARTNERSHIP LLP,571724,"-363,727.00"
Department of Health,The Christie NHS Foundation Trust,01/02/2018,Patient Testing Service ,01 Cancer Centre Services,THE CHRISTIE PATHOLOGY PARTNERSHIP LLP,572009,"424,726.18"
Department of Health,The Christie NHS Foundation Trust,01/02/2018,Critical Care - Oct-17,01 Cancer Centre Services,UNI HOSP OF SOUTH MANCHESTER NHS FT,566156,"29,638.25"
Department of Health,The Christie NHS Foundation Trust,22/02/2018,Critical Care - Jan-18,01 Cancer Centre Services,UNI HOSP OF SOUTH MANCHESTER NHS FT,574802,"29,638.25"
Department of Health,The Christie NHS Foundation Trust,22/02/2018,Anaesthetics - Jan-18,01 Cancer Centre Services,UNI HOSP OF SOUTH MANCHESTER NHS FT,574804,"27,148.17"
Department of Health,The Christie NHS Foundation Trust,15/02/2018,Drugs,011 Drugs,BAXTER HEALTHCARE LTD,573983,"369,449.11"
Department of Health,The Christie NHS Foundation Trust,01/02/2018,Drugs,011 Drugs,BAXTER HEALTHCARE LTD,574418,"336,207.60"
Department of Health,The Christie NHS Foundation Trust,01/02/2018,Drugs,011 Drugs,BAXTER HEALTHCARE LTD,572685,"33,857.80"
Department of Health,The Christie NHS Foundation Trust,01/02/2018,Drugs,011 Drugs,BAXTER HEALTHCARE LTD,572461,"407,649.65"
Department of Health,The Christie NHS Foundation Trust,01/02/2018,Drugs,011 Drugs,BAXTER HEALTHCARE LTD,572483,"346,290.14"
Department of Health,The Christie NHS Foundation Trust,08/02/2018,Drugs,011 Drugs,BAXTER HEALTHCARE LTD,572920,"452,907.31"
Department of Health,The Christie NHS Foundation Trust,22/02/2018,Drugs,011 Drugs,BAXTER HEALTHCARE LTD,574560,"455,884.32"
Department of Health,The Christie NHS Foundation Trust,01/02/2018,Drugs,011 Drugs,EAST CHESHIRE NHS TRUST,569833,"136,483.93"
Department of Health,The Christie NHS Foundation Trust,01/02/2018,Drugs,011 Drugs,EAST CHESHIRE NHS TRUST,570942,"148,619.03"
Department of Health,The Christie NHS Foundation Trust,15/02/2018,Drugs,011 Drugs,EAST CHESHIRE NHS TRUST,572219,"109,178.62"
Department of Health,The Christie NHS Foundation Trust,01/02/2018,Drugs,011 Drugs,EAST CHESHIRE NHS TRUST,569832,"145,394.92"
Department of Health,The Christie NHS Foundation Trust,15/02/2018,Drugs,011 Drugs,MID CHESHIRE HOSPITALS NHS FT,569785,"81,282.45"
Department of Health,The Christie NHS Foundation Trust,08/02/2018,Oncology Services Jan-18,02 Cancer Networked Services,EAST CHESHIRE NHS TRUST,574146,"43,097.75"
Department of Health,The Christie NHS Foundation Trust,15/02/2018,Blood Products,02 Cancer Networked Services,NHS BLOOD AND TRANSPLANT,572623,"-31,905.44"
Department of Health,The Christie NHS Foundation Trust,15/02/2018,Blood Products,02 Cancer Networked Services,NHS BLOOD AND TRANSPLANT,575756,"178,854.08"
Department of Health,The Christie NHS Foundation Trust,15/02/2018,Blood Products,02 Cancer Networked Services,NHS BLOOD AND TRANSPLANT,570933,"31,872.13"
Department of Health,The Christie NHS Foundation Trust,08/02/2018,Maintenance Jan-18 to Dec-18,02 Cancer Networked Services,PHILIPS HEALTHCARE,573749,"170,000.00"
Department of Health,The Christie NHS Foundation Trust,01/02/2018,Christie @ Wigan - Jan-18,02 Cancer Networked Services,WRIGHTINGTON WIGAN AND LEIGH NHS FT,573021,"231,448.00"
Department of Health,The Christie NHS Foundation Trust,01/02/2018,Christie @ Wigan  Apr-16 to Mar-17,02 Cancer Networked Services,WRIGHTINGTON WIGAN AND LEIGH NHS FT,550039,"71,151.00"
Department of Health,The Christie NHS Foundation Trust,01/02/2018,50% Contribution towards consultancy,032 The Christie Clinic,THE CHRISTIE CLINIC (HCA),568141,"43,579.19"
Department of Health,The Christie NHS Foundation Trust,15/02/2018,Chemotherapy Prescribing system - Jan-18 to Mar-18,04c Programme Management Office,IQ HEALTH TECH LTD,571422,"32,500.00"
Department of Health,The Christie NHS Foundation Trust,08/02/2018,IT Equipment,06 Finance & Business Development,HP INC.UK LIMITED,572376,"28,372.32"
Department of Health,The Christie NHS Foundation Trust,01/02/2018,IT Equipment,06 Finance & Business Development,HP INC.UK LIMITED,572127,"25,379.28"
Department of Health,The Christie NHS Foundation Trust,01/02/2018,IT Equipment,06 Finance & Business Development,HP INC.UK LIMITED,571420,"38,260.18"
Department of Health,The Christie NHS Foundation Trust,15/02/2018,Broadband Services,06 Finance & Business Development,VIRGIN MEDIA BUSINESS,567079,"77,606.40"
Department of Health,The Christie NHS Foundation Trust,08/02/2018,Christie @ Oldham - Jan-18 to Mar-18,08 Estates & Facilities,THE PENNINE ACUTE HOSPITAL NHS TRUST,573062,"38,140.50"
Department of Health,The Christie NHS Foundation Trust,08/02/2018,Childcare Voucher - Jan 18,09 Human Resources,FIDELITI LIMITED,573461,"31,491.22"
Department of Health,The Christie NHS Foundation Trust,22/02/2018,PET Scans - Dec-17,14 Christie Medical Physics,ALLIANCE MEDICAL LTD,574940,"153,145.00"
Department of Health,The Christie NHS Foundation Trust,01/02/2018,Drugs,14 Christie Medical Physics,ALLIANCE MEDICAL RADIOPHARMACY LIMITED,572359,"31,936.20"
Department of Health,The Christie NHS Foundation Trust,08/02/2018,PET Scans - Dec 17,14 Christie Medical Physics,CENTRAL MCR  UNIV HOSP NHS FOUNDATION TR,573244,"94,218.00"
Department of Health,The Christie NHS Foundation Trust,15/02/2018,Proton Beam Development (PBT),18 Capital,A COPELAND GROUP LTD,573138,"66,376.34"
Department of Health,The Christie NHS Foundation Trust,15/02/2018,Computer Equipment,18 Capital,HP INC.UK LIMITED,573880,"75,608.40"
Department of Health,The Christie NHS Foundation Trust,01/02/2018,Proton Beam Development (PBT),18 Capital,INTERSERVE CONSTRUCTION LTD,573647,"1,380,050.15"
Department of Health,The Christie NHS Foundation Trust,01/02/2018,Medical Equipment,18 Capital,PHILIPS HEALTHCARE,573129,"34,949.34"
Department of Health,The Christie NHS Foundation Trust,15/02/2018,Proton Beam Development (PBT),18 Capital,PTW UK LTD,573902,"403,462.80"
Department of Health,The Christie NHS Foundation Trust,01/02/2018,Proton Beam Development (PBT),18 Capital,PTW UK LTD,573044,"57,942.00"
Department of Health,The Christie NHS Foundation Trust,22/02/2018,Medical Equipment,18 Capital,VERTEC SCIENTIFIC LTD,573787,"75,830.40"
Department of Health,The Christie NHS Foundation Trust,22/02/2018,Non Medical Equipment,21 GM Cancer Vanguard,CHAMELEON INFORMATION MANAGEMENT SERVICE,574302,"28,080.00"
Department of Health,The Christie NHS Foundation Trust,08/02/2018,Stock for all Wards & Departments,All Wards and Departments,NHS SUPPLY CHAIN,574403,"43,017.26"
Department of Health,The Christie NHS Foundation Trust,22/02/2018,Stock for all Wards & Departments,All Wards and Departments,NHS SUPPLY CHAIN,575729,"47,609.44"
Department of Health,The Christie NHS Foundation Trust,01/02/2018,Stock for all Wards & Departments,All Wards and Departments,NHS SUPPLY CHAIN,573849,"41,570.42"
Department of Health,The Christie NHS Foundation Trust,15/02/2018,Stock for all Wards & Departments,All Wards and Departments,NHS SUPPLY CHAIN,574963,"45,901.64"
